bitfinex/quotes_SOLUSD_20241111
["timestamp","ask_amount","ask_price","bid_price","bid_amount"]
[1731333317128,4.6082,217.0,216.96,0.1]
[1731333317612,4.6082,217.0,216.95,10.68112213]
[1731333317815,4.608,217.02,216.96,0.2]
[1731333318611,23.776884,217.09,216.96,4.709]
[1731333318924,10.68112213,217.03,216.96,10.78112213]
[1731333319133,10.68112213,217.03,216.99,0.1]
[1731333319417,10.68112213,217.03,216.96,10.68112213]
[1731333319418,10.68112213,217.03,216.97,0.1]
[1731333319943,4.6078,217.02,216.96,10.78112213]
[1731333322024,4.6078,217.02,216.96,10.68112213]
[1731333322431,4.6078,217.02,216.96,10.78112213]
[1731333322727,4.6078,217.02,216.98,0.1]
[1731333324324,23.0253,217.16,216.98,0.2]
[1731333324522,10.68112213,217.06,217.0,0.1]
[1731333324713,10.68112213,217.04,217.0,0.1]
[1731333325107,10.68112213,217.04,216.97,11.6219]
[1731333325420,10.68112213,217.04,217.0,0.1]
[1731333325602,4.6076,217.03,217.0,0.1]
[1731333325808,10.68112213,217.02,216.96,0.1]
[1731333326005,10.68112213,217.02,216.97,0.1]
[1731333326908,10.68112213,217.02,216.96,0.1]
[1731333327242,10.68112213,217.02,216.97,0.1]
[1731333327518,4.6076,217.03,216.98,0.1]
[1731333327723,4.6076,217.03,216.96,10.78112213]
[1731333328226,4.6076,217.03,216.97,0.1]
[1731333329719,4.6076,217.03,216.96,10.78112213]
[1731333329902,4.6076,217.03,216.97,0.1]
[1731333330098,4.6076,217.03,216.96,10.78112213]
[1731333330336,4.6076,217.03,216.98,0.2]
[1731333330478,4.6076,217.03,216.96,11.7228]
[1731333331099,4.6076,217.03,216.98,0.1]
[1731333331300,4.6076,217.03,216.96,11.6228]
[1731333331511,4.6076,217.03,216.98,0.1]
[1731333332003,4.6076,217.03,216.96,11.7228]
[1731333332180,10.68112213,217.02,216.96,11.7228]
[1731333332383,10.68112213,216.98,216.94,0.1]
[1731333332658,10.68112213,216.96,216.9,6.8551]
[1731333332911,10.68112213,216.96,216.9,0.1]
[1731333333298,10.68112213,216.94,216.88,0.1]
[1731333333605,10.68112213,216.94,216.9,0.1]
[1731333334123,10.68112213,216.94,216.88,0.1]
[1731333334418,4.6097,216.93,216.88,0.1]
[1731333336217,10.68112213,216.94,216.88,0.1]
[1731333336409,10.68112213,216.94,216.87,10.68112213]
[1731333336610,10.68112213,216.94,216.88,0.1]
[1731333336794,10.68112213,216.95,216.88,0.1]
[1731333336994,10.68112213,216.96,216.9,0.1]
[1731333337411,4.6085,216.99,216.93,0.1]
[1731333337718,4.6085,216.99,216.93,10.78112213]
[1731333338020,10.68112213,216.94,216.87,0.1]
[1731333338315,16.1297,216.99,216.86,15.6237]
[1731333338316,10.68112213,216.92,216.86,15.6237]
[1731333338510,10.68112213,216.91,216.86,15.6237]
[1731333338704,10.68112213,216.91,216.85,6.3305]
[1731333338897,10.68112213,216.88,216.83,11.6296]
[1731333339105,10.68112213,216.88,216.82,4.612]
[1731333339106,10.68112213,216.88,216.81,31.88102213]
[1731333339299,10.68112213,216.87,216.81,16.5877]
[1731333339538,10.68112213,216.86,216.81,16.5877]
[1731333339699,10.68112213,216.87,216.81,16.5877]
[1731333340013,10.68112213,216.88,216.81,27.26882213]
[1731333340219,4.611,216.87,216.81,27.26882213]
[1731333340599,10.68112213,216.92,216.86,0.1]
[1731333340919,10.68112213,216.91,216.84,10.78112213]
[1731333341817,10.68112213,216.9,216.84,0.1]
[1731333343329,4.6105,216.9,216.86,0.1]
[1731333343611,15.29122213,216.92,216.86,0.1]
[1731333343997,15.29122213,216.92,216.84,10.78112213]
[1731333344197,10.68112213,216.91,216.84,10.78112213]
[1731333344625,10.68112213,216.91,216.84,0.1]
[1731333344811,4.6104,216.9,216.84,0.1]
[1731333345220,4.6104,216.9,216.84,10.78112213]
[1731333345519,4.6104,216.9,216.86,0.1]
[1731333345901,4.6104,216.9,216.84,0.1]
[1731333346617,10.68112213,216.89,216.82,0.1]
[1731333346821,10.68112213,216.87,216.8,0.1]
[1731333347326,10.68112213,216.89,216.84,0.1]
[1731333347695,4.6104,216.9,216.84,0.1]
[1731333348018,15.29152213,216.9,216.84,0.1]
[1731333348609,10.68112213,216.88,216.82,0.1]
[1731333348919,10.68112213,216.88,216.81,10.68112213]
[1731333349503,10.68112213,216.88,216.82,0.1]
[1731333350022,10.68112213,216.84,216.75,0.1]
[1731333350209,10.68112213,216.79,216.75,0.1]
[1731333350515,10.68112213,216.81,216.78,0.1]
[1731333350728,32.0851,216.87,216.78,0.1]
[1731333350729,10.68112213,216.83,216.78,0.1]
[1731333351228,10.68112213,216.81,216.76,0.1]
[1731333351827,10.68112213,216.81,216.74,6.7112]
[1731333351828,10.68112213,216.79,216.74,6.7112]
[1731333352132,10.68112213,216.77,216.74,6.6112]
[1731333352461,4.6125,216.81,216.74,0.1]
[1731333352621,10.68112213,216.82,216.78,0.1]
[1731333353017,10.68112213,216.83,216.78,0.1]
[1731333353420,10.68112213,216.8,216.74,0.1]
[1731333353833,10.68112213,216.78,216.74,0.1]
[1731333354122,4.6126,216.8,216.74,0.1]
[1731333354306,10.68112213,216.81,216.77,0.1]
[1731333354500,15.29352213,216.81,216.77,0.1]
[1731333355117,10.68112213,216.79,216.75,0.1]
[1731333355304,10.68112213,216.78,216.75,0.1]
[1731333355512,10.68112213,216.78,216.73,15.7214]
[1731333355919,15.29422213,216.78,216.73,0.1]
[1731333356228,10.68112213,216.76,216.7,20.0]
[1731333356403,4.6131,216.78,216.67,11.5381]
[1731333356404,10.68112213,216.73,216.67,11.6381]
[1731333356620,10.68112213,216.73,216.67,0.1]
[1731333357013,10.68112213,216.71,216.67,0.1]
[1731333357331,10.68112213,216.68,216.63,33.7324]
[1731333357527,10.68112213,216.68,216.64,0.1]
[1731333358236,15.29632213,216.68,216.62,0.1]
[1731333358525,15.29632213,216.68,216.6,0.1]
[1731333358526,10.68112213,216.66,216.6,0.1]
[1731333358820,16.73732286,216.66,216.6,0.1]
[1731333359241,9.79348168,216.65,216.6,0.1]
[1731333359533,16.73732286,216.65,216.58,43.48912286]
[1731333359922,16.73732286,216.67,216.6,16.73732286]
[1731333361002,4.6155,216.66,216.6,16.73732286]
[1731333361533,4.6155,216.66,216.6,21.35402286]
[1731333361720,16.73732286,216.67,216.6,21.35402286]
[1731333361926,6.5315,216.73,216.6,32.89602286]
[1731333362130,5.22943017,216.77,216.67,16.73732286]
[1731333362333,5.22943017,216.77,216.7,16.73732286]
[1731333362515,28.26702286,216.84,216.73,16.73732286]
[1731333362516,16.73732286,216.8,216.73,16.73732286]
[1731333362713,21.34942286,216.82,216.74,16.73732286]
[1731333362911,21.34942286,216.82,216.69,15.8486]
[1731333362912,16.73732286,216.81,216.7,20.0]
[1731333363123,16.73732286,216.81,216.74,16.73732286]
[1731333363527,16.73732286,216.81,216.7,16.1512]
[1731333363528,16.73732286,216.86,216.78,16.73732286]
[1731333364039,16.73732286,216.85,216.77,16.73732286]
[1731333364230,16.73732286,216.86,216.79,16.73732286]
[1731333364531,16.73732286,216.84,216.76,20.0]
[1731333364727,16.73732286,216.84,216.77,16.73732286]
[1731333364937,16.73732286,216.85,216.78,16.73732286]
[1731333365322,16.73732286,216.82,216.77,11.5329]
[1731333365732,16.73732286,216.85,216.77,32.88332286]
[1731333365927,16.73732286,216.85,216.78,16.73732286]
[1731333366324,16.73732286,216.85,216.77,32.88332286]
[1731333367025,21.34882286,216.85,216.77,32.88332286]
[1731333367540,16.73732286,216.84,216.77,32.88332286]
[1731333368823,16.73732286,216.82,216.77,11.5329]
[1731333369086,16.73732286,216.79,216.73,16.1487]
[1731333369434,16.73732286,216.8,216.73,16.1487]
[1731333369626,16.73732286,216.81,216.74,16.73732286]
[1731333370145,16.73732286,216.81,216.75,4.6136]
[1731333370831,21.34942286,216.82,216.75,4.6136]
[1731333371338,16.73732286,216.83,216.76,16.73732286]
[1731333371717,16.73732286,216.82,216.75,32.88492286]
[1731333371923,16.73732286,216.82,216.75,16.1476]
[1731333372380,16.73732286,216.8,216.75,11.534]
[1731333373420,16.73732286,216.81,216.75,11.534]
[1731333373730,16.73732286,216.83,216.76,16.73732286]
[1731333373931,16.73732286,216.84,216.77,16.73732286]
[1731333374647,16.73732286,216.85,216.78,16.1453]
[1731333375419,16.73732286,216.91,216.83,16.73732286]
[1731333375729,16.73732286,216.89,216.82,16.73732286]
[1731333376035,16.73732286,216.9,216.83,16.73732286]
[1731333376636,16.73732286,216.94,216.84,4.6116]
[1731333376835,11.5207,217.0,216.84,4.6116]
[1731333376836,16.73732286,216.98,216.9,16.73732286]
[1731333377022,16.73732286,216.98,216.92,16.73732286]
[1731333377230,4.6079,217.02,216.88,23.776884]
[1731333377421,4.6079,217.02,216.86,23.776884]
[1731333377621,4.6079,217.02,216.87,20.0]
[1731333378441,16.73732286,216.96,216.88,32.87522286]
[1731333378941,16.73732286,216.98,216.91,16.73732286]
[1731333379630,21.34612286,216.98,216.91,16.73732286]
[1731333380120,21.34612286,216.98,216.91,21.34742286]
[1731333380441,4.6084,217.0,216.93,16.73732286]
[1731333380628,26.95640334,217.06,216.95,16.73732286]
[1731333380629,4.608,217.02,216.95,16.73732286]
[1731333381243,26.13321994,217.06,216.99,16.73732286]
[1731333381450,21.34442286,217.06,216.99,16.73732286]
[1731333382523,16.73732286,217.05,216.98,21.34582286]
[1731333383372,16.73732286,217.04,216.97,16.73732286]
[1731333383642,16.73732286,217.01,216.96,11.5223]
[1731333383847,16.73732286,216.97,216.87,36.1386]
[1731333384017,16.73732286,216.94,216.87,32.87592286]
[1731333384436,16.73732286,216.94,216.87,16.1386]
[1731333384627,16.73732286,216.93,216.87,11.5276]
[1731333384949,16.73732286,216.93,216.86,6.2652]
[1731333385246,16.73732286,216.91,216.83,16.73732286]
[1731333385448,16.73732286,216.93,216.85,16.73732286]
[1731333386550,21.34722286,216.93,216.85,21.34872286]
[1731333386937,21.34672286,216.95,216.87,16.73732286]
[1731333387436,16.73732286,216.97,216.89,16.73732286]
[1731333387644,16.73732286,216.97,216.9,16.73732286]
[1731333387822,16.73732286,216.95,216.88,16.73732286]
[1731333388020,16.73732286,216.94,216.87,16.73732286]
[1731333388446,16.73732286,216.96,216.88,16.73732286]
[1731333389645,16.73732286,216.95,216.88,21.34802286]
[1731333390237,16.73732286,216.96,216.88,21.34802286]
[1731333390847,16.73732286,216.97,216.9,16.73732286]
[1731333391629,15.0169,217.05,216.96,16.73732286]
[1731333391955,15.0169,217.05,216.9,43.776884]
[1731333392132,15.0169,217.05,216.98,16.73732286]
[1731333392133,31.75422286,217.05,216.98,16.73732286]
[1731333392968,36.36152286,217.05,216.98,16.73732286]
[1731333393153,21.34422286,217.07,217.0,16.73732286]
[1731333393876,16.73732286,217.11,217.04,16.73732286]
[1731333394307,21.34292286,217.13,217.06,16.73732286]
[1731333394322,15.4756,217.16,217.01,6.0527]
[1731333394323,16.73732286,217.15,217.08,16.73732286]
[1731333394713,4.605,217.16,217.02,43.776884]
[1731333394824,4.6053,217.14,217.07,26.65885754]
[1731333395144,26.65885754,217.11,217.05,26.65885754]
[1731333395527,26.65885754,217.11,217.03,42.78515754]
[1731333395758,26.65885754,217.1,217.03,11.5188]
[1731333396134,26.65885754,217.07,217.0,26.65885754]
[1731333396448,26.65885754,217.07,216.99,42.78835754]
[1731333396650,26.65885754,217.1,217.02,26.65885754]
[1731333396823,4.607,217.06,216.99,42.78835754]
[1731333397258,4.607,217.06,217.0,26.65885754]
[1731333397545,26.65885754,217.07,217.0,26.65885754]
[1731333397648,31.26555754,217.08,217.01,26.65885754]
[1731333397882,26.65885754,217.11,217.03,26.65885754]
[1731333398166,26.65885754,217.1,217.03,26.65885754]
[1731333398327,26.65885754,217.1,217.02,26.65885754]
[1731333398947,9.39356431,217.09,217.03,26.65885754]
[1731333399248,31.26495754,217.1,217.03,26.65885754]
[1731333400260,26.65885754,217.13,217.06,26.65885754]
[1731333400464,26.65885754,217.14,217.06,26.65885754]
[1731333400633,26.65885754,217.14,217.07,26.65885754]
[1731333400970,26.65885754,217.13,217.06,26.65885754]
[1731333401149,26.65885754,217.13,217.06,31.26565754]
[1731333401354,26.65885754,217.16,217.08,26.65885754]
[1731333401652,6.20999015,217.17,217.06,38.17635754]
[1731333401653,26.65885754,217.13,217.06,38.17635754]
[1731333401856,26.65885754,217.11,217.03,26.65885754]
[1731333402061,26.65885754,217.1,217.03,26.65885754]
[1731333402359,26.65885754,217.09,217.02,16.1273]
[1731333402552,26.65885754,217.07,216.99,26.65885754]
[1731333402864,26.65885754,217.06,217.0,20.0]
[1731333403036,26.65885754,217.07,217.0,20.0]
[1731333403238,26.65885754,217.05,216.98,11.5217]
[1731333403446,26.65885754,217.04,216.98,11.5217]
[1731333403752,26.65885754,217.05,216.98,11.5217]
[1731333403956,26.65885754,217.04,216.96,31.26785754]
[1731333404138,26.65885754,217.03,216.96,31.26785754]
[1731333404338,26.65885754,217.03,216.95,26.65885754]
[1731333404541,26.65885754,217.02,216.94,31.26825754]
[1731333404936,9.93254321,217.01,216.94,31.26825754]
[1731333405137,4.608,217.01,216.94,31.26825754]
[1731333405638,4.6076,217.04,216.96,26.65885754]
[1731333405849,9.49426792,217.03,216.99,26.65885754]
[1731333406158,26.65885754,217.06,216.98,26.65885754]
[1731333406875,4.6074,217.05,216.95,11.5233]
[1731333407063,31.26625754,217.05,216.98,26.65885754]
[1731333407351,26.65885754,217.04,216.97,26.65885754]
[1731333407933,26.65885754,217.06,216.98,26.65885754]
[1731333408875,31.26535754,217.08,217.01,26.65885754]
[1731333409543,26.65885754,217.07,216.99,26.65885754]
[1731333409938,31.26575754,217.07,217.0,4.6082]
[1731333410238,31.26575754,217.07,217.0,42.78775754]
[1731333410668,31.26575754,217.07,217.0,16.1289]
[1731333411872,31.26575754,217.07,217.01,26.65885754]
[1731333412361,31.26575754,217.07,216.99,26.65885754]
[1731333412741,47.78505754,217.09,217.01,26.65885754]
[1731333413459,47.78505754,217.09,217.01,17.58291393]
[1731333413663,31.26575754,217.07,216.96,39.908784]
[1731333413965,31.26575754,217.07,216.99,26.65885754]
[1731333414645,47.78505754,217.09,217.01,26.65885754]
[1731333414850,16.67232779,217.08,217.0,16.67232779]
[1731333416150,21.27892779,217.08,217.01,4.608]
[1731333416740,16.67232779,217.06,217.0,28.19282779]
[1731333416944,4.6066,217.08,217.0,28.19282779]
[1731333417148,16.67232779,217.13,217.04,16.67232779]
[1731333417360,32.63782779,217.14,217.06,16.67232779]
[1731333418052,32.63782779,217.14,217.01,23.776884]
[1731333418053,16.67232779,217.11,217.04,11.5183]
[1731333418252,16.67232779,217.1,217.04,16.1257]
[1731333418449,16.67232779,217.11,217.04,16.1257]
[1731333418759,1.56607756,217.17,217.05,60.44921179]
[1731333419064,16.67232779,217.23,217.15,16.67232779]
[1731333419949,16.67232779,217.21,217.14,16.67232779]
[1731333420147,16.67232779,217.21,217.13,4.6055]
[1731333420148,16.67232779,217.24,217.17,16.67232779]
[1731333420345,21.07439968,217.28,217.17,16.67232779]
[1731333420346,16.67232779,217.25,217.17,16.67232779]
[1731333420549,16.2902,217.28,217.15,26.3573]
[1731333420868,16.67232779,217.27,217.2,16.67232779]
[1731333421298,16.67232779,217.26,217.19,16.67232779]
[1731333421377,15.67232779,217.26,217.19,16.67232779]
[1731333421679,16.67232779,217.27,217.2,16.67232779]
[1731333422177,16.67232779,217.27,217.2,21.27612779]
[1731333422360,4.6012,217.33,217.26,16.67232779]
[1731333422669,21.39104102,217.34,217.29,16.67232779]
[1731333422670,1.58241373,217.34,217.29,16.67232779]
[1731333422968,4.601,217.35,217.28,26.60495972]
[1731333423155,4.601,217.35,217.21,20.0]
[1731333423358,6.20794234,217.35,217.21,20.0]
[1731333423762,17.71004234,217.35,217.2,16.1139]
[1731333424068,13.30904234,217.35,217.15,22.4747]
[1731333424248,26.60495972,217.24,217.17,26.60495972]
[1731333424965,26.60495972,217.25,217.18,26.60495972]
[1731333425143,26.60495972,217.23,217.16,26.60495972]
[1731333425356,26.60495972,217.23,217.15,38.11725972]
[1731333425568,26.60495972,217.23,217.15,42.72235972]
[1731333425786,26.60495972,217.25,217.17,26.60495972]
[1731333426074,26.60495972,217.24,217.16,26.60495972]
[1731333426251,26.60495972,217.25,217.17,26.60495972]
[1731333426451,26.60495972,217.26,217.18,26.60495972]
[1731333426875,26.60495972,217.25,217.19,4.6042]
[1731333427260,4.6026,217.27,217.17,4.6045]
[1731333427261,26.60495972,217.22,217.17,4.6045]
[1731333427491,26.60495972,217.21,217.15,16.1173]
[1731333427847,26.60495972,217.22,217.15,16.1173]
[1731333428052,26.60495972,217.23,217.15,42.72225972]
[1731333429052,31.20835972,217.23,217.15,42.72225972]
[1731333429452,26.60495972,217.2,217.15,16.1173]
[1731333429876,26.60495972,217.21,217.15,16.1173]
[1731333430057,26.60495972,217.22,217.14,26.60495972]
[1731333430803,26.60495972,217.21,217.14,20.0]
[1731333431275,26.60495972,217.22,217.15,24.6051]
[1731333431870,26.60495972,217.22,217.15,62.72275972]
[1731333432065,26.60495972,217.24,217.17,26.60495972]
[1731333432486,26.60495972,217.23,217.16,26.60495972]
[1731333432673,26.60495972,217.24,217.17,20.0]
[1731333432991,26.60495972,217.26,217.18,26.60495972]
[1731333433147,26.60495972,217.25,217.17,46.60495972]
[1731333433568,26.60495972,217.25,217.18,24.6044]
[1731333433985,26.60495972,217.25,217.18,51.20935972]
[1731333434275,26.60495972,217.26,217.19,26.60495972]
[1731333434458,26.60495972,217.25,217.18,24.6044]
[1731333434778,26.60495972,217.19,217.11,11.5144]
[1731333434982,26.60495972,217.19,217.12,26.60495972]
[1731333435195,26.60495972,217.16,217.07,38.12185972]
[1731333435476,0.1,217.26,217.07,38.12185972]
[1731333435477,34.980684,217.26,217.07,11.5169]
[1731333435674,34.980684,217.26,217.12,26.60495972]
[1731333435675,26.60495972,217.2,217.12,26.60495972]
[1731333436371,26.60495972,217.19,217.12,26.60495972]
[1731333436765,26.60495972,217.21,217.14,26.60495972]
[1731333437179,26.60495972,217.21,217.13,20.0]
[1731333437572,10.20618523,217.2,217.13,4.6053]
[1731333437775,31.20885972,217.21,217.13,4.6053]
[1731333438095,4.6039,217.21,217.12,11.5141]
[1731333438284,26.60495972,217.17,217.12,11.5141]
[1731333438466,26.60495972,217.21,217.14,26.60495972]
[1731333438653,26.60495972,217.23,217.16,26.60495972]
[1731333438856,26.60495972,217.25,217.18,26.60495972]
[1731333439686,26.60495972,217.27,217.19,16.1148]
[1731333440376,26.60495972,217.31,217.19,16.1148]
[1731333440569,26.60495972,217.31,217.23,26.60495972]
[1731333441384,26.60495972,217.29,217.22,26.60495972]
[1731333441562,26.60495972,217.26,217.21,11.5095]
[1731333441768,26.60495972,217.27,217.21,16.1133]
[1731333442301,26.60495972,217.25,217.21,11.5095]
[1731333442460,26.60495972,217.26,217.21,11.5095]
[1731333443885,26.60495972,217.25,217.18,4.6043]
[1731333444077,26.60495972,217.27,217.19,26.60495972]
[1731333445181,26.60495972,217.27,217.2,16.1141]
[1731333446796,16.70381283,217.33,217.18,31.20915972]
[1731333446797,26.60495972,217.25,217.18,31.20915972]
[1731333446970,26.60495972,217.24,217.18,4.6042]
[1731333447170,26.60495972,217.26,217.18,4.6042]
[1731333447482,26.60495972,217.26,217.19,26.60495972]
[1731333447787,26.60495972,217.28,217.2,26.60495972]
[1731333447993,26.60495972,217.27,217.19,26.60495972]
[1731333449094,26.60495972,217.27,217.2,16.1141]
[1731333449586,26.60495972,217.26,217.2,16.1141]
[1731333449783,1.60711283,217.33,217.3,159.3]
[1731333449978,10.4271222,217.32,217.27,26.60495972]
[1731333450181,4.6013,217.33,217.27,26.60495972]
[1731333451172,26.60495972,217.33,217.25,38.11215972]
[1731333451547,26.60495972,217.31,217.25,11.5072]
[1731333451691,26.60495972,217.31,217.25,16.1101]
[1731333451873,26.60495972,217.29,217.25,16.1101]
[1731333452990,26.60495972,217.31,217.23,26.60495972]
[1731333453488,26.60495972,217.24,217.18,39.1376]
[1731333453865,26.60495972,217.25,217.18,39.1376]
[1731333454185,26.60495972,217.24,217.18,16.1155]
[1731333454689,26.60495972,217.27,217.2,26.60495972]
[1731333454967,26.60495972,217.26,217.19,26.60495972]
[1731333455089,26.60495972,217.26,217.21,11.5095]
[1731333455283,26.60495972,217.3,217.23,26.60495972]
[1731333455596,4.6012,217.33,217.25,26.60495972]
[1731333455779,4.6012,217.33,217.26,26.60495972]
[1731333455975,6.18623529,217.34,217.27,26.60495972]
[1731333456199,4.6011,217.34,217.27,26.60495972]
[1731333456382,26.60495972,217.34,217.27,26.60495972]
[1731333456689,31.20575972,217.35,217.28,26.60495972]
[1731333457183,31.20575972,217.35,217.29,4.6021]
[1731333457385,26.60495972,217.34,217.29,4.6021]
[1731333457796,26.60495972,217.33,217.27,16.1086]
[1731333457993,26.60495972,217.31,217.25,4.6028]
[1731333458213,26.60495972,217.31,217.24,26.60495972]
[1731333458401,26.60495972,217.31,217.24,31.20805972]
[1731333458778,26.60495972,217.31,217.23,44.27935972]
[1731333459292,31.20665972,217.31,217.23,48.88275972]
[1731333459797,31.20665972,217.31,217.24,26.60495972]
[1731333460278,4.6017,217.31,217.25,26.60495972]
[1731333461091,31.20665972,217.31,217.24,31.20795972]
[1731333461686,10.67171321,217.3,217.24,31.20795972]
[1731333461889,4.6019,217.3,217.24,31.20795972]
[1731333462471,1.61780382,217.32,217.27,26.60495972]
[1731333462677,4.6012,217.33,217.27,26.60495972]
[1731333462995,26.60495972,217.36,217.28,26.60495972]
[1731333463368,26.60495972,217.36,217.29,26.60495972]
[1731333463793,26.60495972,217.34,217.27,42.71335972]
[1731333464177,26.60495972,217.37,217.3,26.60495972]
[1731333464375,26.60495972,217.35,217.27,42.71335972]
[1731333465074,26.60495972,217.35,217.28,26.60495972]
[1731333465286,26.60495972,217.35,217.28,31.20725972]
[1731333465603,26.60495972,217.34,217.27,38.11095972]
[1731333465901,26.60495972,217.33,217.26,26.60495972]
[1731333466199,26.60495972,217.32,217.25,26.60495972]
[1731333466583,26.60495972,217.34,217.26,26.60495972]
[1731333466773,26.60495972,217.34,217.27,26.60495972]
[1731333466973,4.6012,217.33,217.27,26.60495972]
[1731333467680,4.6012,217.33,217.27,31.20735972]
[1731333467885,26.60495972,217.35,217.28,26.60495972]
[1731333468080,26.60495972,217.34,217.27,42.71375972]
[1731333468404,26.60495972,217.33,217.27,11.5064]
[1731333469288,26.60495972,217.34,217.27,11.5064]
[1731333469587,26.60495972,217.33,217.26,26.60495972]
[1731333469802,26.60495972,217.34,217.26,26.60495972]
[1731333470178,26.60495972,217.35,217.27,26.60495972]
[1731333470385,31.20555972,217.36,217.28,26.60495972]
[1731333470791,16.62881684,217.34,217.27,16.62881684]
[1731333471392,21.22991684,217.34,217.26,52.73841684]
[1731333471905,16.62881684,217.33,217.26,32.73841684]
[1731333472409,21.23011684,217.33,217.26,32.73841684]
[1731333472699,4.6013,217.33,217.26,16.1096]
[1731333472892,21.23011684,217.33,217.26,16.1096]
[1731333474079,16.62881684,217.34,217.27,36.62881684]
[1731333474677,16.62881684,217.34,217.27,16.62881684]
[1731333475090,16.62881684,217.34,217.27,20.0]
[1731333475317,16.62881684,217.32,217.27,4.6024]
[1731333476005,16.62881684,217.33,217.27,4.6024]
[1731333476184,16.62881684,217.33,217.26,16.1096]
[1731333476384,16.62881684,217.32,217.26,16.1096]
[1731333476599,16.62881684,217.33,217.26,32.73841684]
[1731333476899,16.62881684,217.34,217.26,32.73841684]
[1731333477085,21.22981684,217.34,217.26,32.73841684]
[1731333477287,10.54961004,217.33,217.26,32.73841684]
[1731333477594,21.22981684,217.34,217.26,32.73841684]
[1731333478179,16.62881684,217.34,217.26,32.73841684]
[1731333478495,16.62881684,217.36,217.29,16.62881684]
[1731333479004,16.62881684,217.35,217.28,16.62881684]
[1731333479596,21.22971684,217.35,217.29,4.6021]
[1731333480432,16.62881684,217.33,217.26,16.1096]
[1731333480698,16.62881684,217.3,217.23,6.1661]
[1731333480902,15.3062,217.24,217.14,32.74741684]
[1731333481083,16.62881684,217.26,217.18,16.62881684]
[1731333481480,16.62881684,217.23,217.16,16.62881684]
[1731333481676,16.62881684,217.23,217.17,16.1163]
[1731333482880,16.62881684,217.21,217.17,16.1163]
[1731333483087,16.62881684,217.2,217.12,28.14271684]
[1731333483387,16.62881684,217.22,217.14,16.62881684]
[1731333484108,16.62881684,217.22,217.15,16.1178]
[1731333484314,16.62881684,217.21,217.15,16.1178]
[1731333484772,16.62881684,217.21,217.16,23.776884]
[1731333484899,4.6028,217.26,217.25,142.67118316]
[1731333485122,21.23161684,217.26,217.17,11.5117]
[1731333485318,16.62881684,217.21,217.17,11.5117]
[1731333485827,16.62881684,217.23,217.17,11.5117]
[1731333486003,16.62881684,217.25,217.18,40.40570084]
[1731333486196,16.62881684,217.27,217.2,16.62881684]
[1731333486399,16.62881684,217.28,217.21,23.776884]
[1731333487004,16.62881684,217.28,217.22,4.6036]
[1731333488329,16.62881684,217.26,217.22,4.6036]
[1731333488627,16.62881684,217.26,217.22,16.1126]
[1731333489821,16.62881684,217.26,217.2,23.776884]
[1731333490407,16.62881684,217.27,217.2,23.776884]
[1731333491096,16.62881684,217.27,217.22,11.509]
[1731333491726,16.62881684,217.26,217.22,11.509]
[1731333492501,1.57946023,217.35,217.31,142.67118316]
[1731333492708,16.62881684,217.31,217.23,16.62881684]
[1731333492920,16.62881684,217.33,217.25,16.62881684]
[1731333493127,16.62881684,217.35,217.28,16.1081]
[1731333493819,16.62881684,217.33,217.28,16.1081]
[1731333495011,16.62881684,217.29,217.23,11.5085]
[1731333495209,16.62881684,217.27,217.23,11.5085]
[1731333495519,16.62881684,217.31,217.23,28.13731684]
[1731333495923,16.62881684,217.3,217.23,11.5085]
[1731333496124,16.62881684,217.28,217.23,11.5085]
[1731333497324,17.89933846,217.36,217.26,16.62881684]
[1731333497525,17.89933846,217.36,217.24,16.62881684]
[1731333497526,16.62881684,217.32,217.24,16.62881684]
[1731333497713,16.62881684,217.3,217.23,11.5085]
[1731333498717,16.62881684,217.28,217.23,11.5085]
[1731333499616,16.62881684,217.28,217.23,16.1119]
[1731333500129,16.62881684,217.26,217.21,4.6036]
[1731333500320,16.62881684,217.24,217.18,11.5108]
[1731333501335,16.62881684,217.26,217.18,28.13961684]
[1731333502219,16.62881684,217.26,217.18,32.74401684]
[1731333502415,16.62881684,217.28,217.21,23.776884]
[1731333502632,4.6012,217.34,217.33,142.67118316]
[1731333502834,21.23001684,217.34,217.23,23.776884]
[1731333503016,16.62881684,217.29,217.23,23.776884]
[1731333503214,16.62881684,217.29,217.22,23.776884]
[1731333504039,16.62881684,217.29,217.23,16.1119]
[1731333504214,16.62881684,217.29,217.24,23.776884]
[1731333504415,16.62881684,217.28,217.23,16.1119]
[1731333504616,16.62881684,217.24,217.19,11.5105]
[1731333505332,16.62881684,217.22,217.19,11.5105]
[1731333506619,6.286,217.3,217.18,16.62881684]